fUSD/lending_fUSD_20240814
["ID","MTS","AMOUNT","RATE_DAILY","PERIOD"]
[334955157,1723671065830,-156.934275,0.00015342,2]
[334955158,1723671065841,-427.976466,0.00015342,2]
[334955159,1723671065850,-156.934275,0.00015342,2]
[334955160,1723671065859,-151.0,0.00015342,2]
[334955161,1723671065868,-500.0,0.00015342,2]
[334955162,1723671065878,-500.0,0.00015342,2]
[334955163,1723671065887,-328.071574,0.00015342,2]
[334955164,1723671065897,-328.071574,0.00015342,2]
[334955165,1723671065906,-2189.59777,0.00015342,2]
[334955166,1723671065916,-2189.59777,0.00015342,2]
[334955167,1723671065926,-500.0,0.00015342,2]
[334955168,1723671065935,-300.879041,0.00015342,2]
[334955169,1723671065944,-300.879041,0.00015342,2]
[334955170,1723671065954,-500.0,0.00015342,2]
[334955171,1723671065963,-151.0,0.00015342,2]
[334955172,1723671065972,-500.0,0.00015342,2]
[334955173,1723671065982,-500.0,0.00015342,2]
[334955174,1723671065991,-212.28109,0.00015342,2]
[334955175,1723671066001,-212.2811,0.00015342,2]
[334955176,1723671066010,-267.021086,0.00015342,2]
[334955177,1723671066019,-500.0,0.00015342,2]
[334955178,1723671066029,-267.021081,0.00015342,2]
[334955179,1723671066039,-500.0,0.00015342,2]
[334955180,1723671066048,-454.889454,0.00015342,2]
[334955181,1723671066058,-919.322496,0.00015342,2]
[334955182,1723671066067,-454.889463,0.00015342,2]
[334955183,1723671066077,-543.0,0.00015342,2]
[334955184,1723671066086,-919.322494,0.00015342,2]
[334955185,1723671066096,-500.0,0.00015342,2]
[334955186,1723671066105,-201.582572,0.00015342,2]
[334955187,1723671066114,-201.582569,0.00015342,2]
[334955188,1723671066123,-10000.0,0.00015342,2]
[334955189,1723671066132,-357.539196,0.00015342,2]
[334955190,1723671066141,-10000.0,0.00015342,2]
[334955191,1723671066150,-357.539202,0.00015342,2]
[334955192,1723671066159,-151.0,0.00015342,2]
[334955193,1723671066168,-500.0,0.00015342,2]
[334955194,1723671066178,-516.82,0.00015342,2]
[334955195,1723671066187,-500.0,0.00015342,2]
[334955196,1723671066196,-500.0,0.00015342,2]
[334955197,1723671066206,-1439.5,0.00015342,2]
[334955198,1723671066216,-283.669863,0.00015342,2]
[334955199,1723671066225,-283.669858,0.00015342,2]
[334955200,1723671066234,-296.765324,0.00015342,2]
[334955201,1723671066244,-296.765321,0.00015342,2]
[334955202,1723671066253,-500.0,0.00015342,2]
[334955203,1723671066263,-425.920658,0.00015342,2]
[334955204,1723671066272,-425.920655,0.00015342,2]
[334955205,1723671066282,-500.0,0.00015342,2]
[334955206,1723671066291,-500.0,0.00015342,2]
[334955207,1723671066301,-500.0,0.00015342,2]
[334955208,1723671066310,-500.0,0.00015342,2]
[334955209,1723671066319,-500.0,0.00015342,2]
[334955210,1723671066329,-500.0,0.00015342,2]
[334955211,1723671066339,-1349.32,0.00015342,2]
[334955212,1723671066349,-263.04853229,0.00015342,2]
[334955213,1723671066358,-500.0,0.00015342,2]
[334955214,1723671066367,-556.38662684,0.00015342,2]
[334955215,1723671066377,-500.0,0.00015342,2]
[334955216,1723671066386,-879.23,0.00015342,2]
[334955217,1723671066395,-500.0,0.00015342,2]
[334955218,1723671066405,-500.0,0.00015342,2]
[334955219,1723671066415,-500.0,0.00015342,2]
[334955220,1723671066423,-500.0,0.00015342,2]
[334955221,1723671066433,-549.55378528,0.00015342,2]
[334955222,1723671066442,-500.0,0.00015342,2]
[334955223,1723671066452,-500.0,0.00015342,2]
[334955224,1723671066462,-500.0,0.00015342,2]
[334955225,1723671066471,-1445.27,0.00015342,2]
[334955226,1723671066481,-500.0,0.00015342,2]
[334955227,1723671066490,-500.0,0.00015342,2]
[334955228,1723671066500,-500.0,0.00015342,2]
[334955229,1723671066509,-500.0,0.00015342,2]
[334955230,1723671066519,-500.0,0.00015342,2]
[334955231,1723671066528,-1238.655571,0.00015342,2]
[334955232,1723671066537,-1238.655569,0.00015342,2]
[334955233,1723671066547,-215.66,0.00015415,2]
[334955234,1723671066557,-500.0,0.00015469,2]
[334955235,1723671066566,-1953.876887,0.0001553,2]
[334955236,1723671066575,-1953.876887,0.0001553,2]
[334955237,1723671066585,-151.0,0.0001553,2]
[334955238,1723671066594,-312.17786625,0.00015567,2]
[334955239,1723671066603,-500.0,0.00015614,2]
[334955240,1723671066613,-1074.68,0.00015614,2]
[334955241,1723671066622,-473.61027575,0.00015614,2]
[334955242,1723671066631,-500.0,0.00015614,2]
[334955243,1723671066641,-1128.61,0.00015614,2]
[334955244,1723671066651,-500.0,0.00015614,2]
[334955245,1723671066661,-500.0,0.00015614,2]
[334955246,1723671066670,-500.0,0.00015614,2]
[334955247,1723671066679,-500.0,0.00015614,2]
[334955248,1723671066689,-507.16,0.00015614,2]
[334955249,1723671066698,-500.0,0.00015614,2]
[334955250,1723671066708,-500.0,0.00015614,2]
[334955251,1723671066717,-500.0,0.00015614,2]
[334955252,1723671066727,-616.75611411,0.00015614,2]
[334955253,1723671066736,-471.71,0.00015615,2]
[334955254,1723671066745,-449.93,0.00015615,2]
[334955255,1723671066755,-500.0,0.00015615,2]
[334955256,1723671066764,-500.0,0.00015615,2]
[334955257,1723671066773,-500.0,0.00015615,2]
[334955258,1723671066783,-500.0,0.00015615,2]
[334955259,1723671066792,-500.0,0.00015615,2]
[334955260,1723671066802,-500.0,0.00015615,2]
[334955261,1723671066812,-500.0,0.00015615,2]
[334955262,1723671066821,-500.0,0.00015615,2]
[334955263,1723671066909,-500.0,0.00015615,2]
[334955264,1723671066920,-500.0,0.00015615,2]
[334955265,1723671066930,-500.0,0.00015615,2]
[334955266,1723671066940,-500.0,0.00015615,2]
[334955267,1723671066949,-500.0,0.00015615,2]
[334955268,1723671066958,-500.0,0.00015615,2]
[334955269,1723671066968,-500.0,0.00015615,2]
[334955270,1723671066978,-500.0,0.00015615,2]
[334955271,1723671066989,-500.0,0.00015615,2]
[334955272,1723671066998,-500.0,0.00015615,2]
[334955273,1723671067008,-500.0,0.00015615,2]
[334955274,1723671067018,-500.0,0.00015615,2]
[334955275,1723671067028,-500.0,0.00015615,2]
[334955276,1723671067039,-500.0,0.00015615,2]
[334955277,1723671067048,-500.0,0.00015615,2]
[334955278,1723671067057,-696.69,0.00015615,2]
[334955279,1723671067068,-500.0,0.00015615,2]
[334955280,1723671067078,-500.0,0.00015615,2]
[334955281,1723671067088,-979.79,0.00015615,2]
[334955282,1723671067097,-500.0,0.00015615,2]
[334955283,1723671067107,-500.0,0.00015615,2]
[334955284,1723671067116,-500.0,0.00015615,2]
[334955285,1723671067126,-500.0,0.00015615,2]
[334955286,1723671067135,-500.0,0.00015615,2]
[334955287,1723671067145,-1000.0,0.00015615,2]
[334955288,1723671067155,-213.72794671,0.00015615,2]
[334955289,1723671067165,-500.0,0.00015615,2]
[334955290,1723671067175,-500.0,0.00015615,2]
[334955291,1723671067185,-500.0,0.00015615,2]
[334955292,1723671067195,-500.0,0.00015615,2]
[334955293,1723671067204,-500.0,0.00015615,2]
[334955294,1723671067214,-639.81,0.00015615,2]
[334955295,1723671067224,-500.0,0.00015615,2]
[334955296,1723671067234,-500.0,0.00015615,2]
[334955297,1723671067245,-500.0,0.00015615,2]
[334955298,1723671067254,-500.0,0.00015615,2]
[334955299,1723671067264,-500.0,0.00015615,2]
[334955300,1723671067273,-500.0,0.00015615,2]
[334955301,1723671067282,-500.0,0.00015615,2]
[334955302,1723671067292,-500.0,0.00015615,2]
[334955303,1723671067301,-500.0,0.00015615,2]
[334955304,1723671067311,-673.87,0.00015615,2]
[334955305,1723671067321,-500.0,0.00015615,2]
[334955306,1723671067330,-1191.97,0.00015615,2]
[334955307,1723671067339,-500.0,0.00015615,2]
[334955308,1723671067350,-2033.88,0.00015615,2]
[334955309,1723671067360,-500.0,0.00015615,2]
[334955310,1723671067369,-500.0,0.00015615,2]
[334955311,1723671067379,-500.0,0.00015615,2]
[334955312,1723671067388,-500.0,0.00015615,2]
[334955313,1723671067397,-716.22,0.00015615,2]
[334955314,1723671067406,-500.0,0.00015615,2]
[334955315,1723671067416,-500.0,0.00015615,2]
[334955316,1723671067425,-500.0,0.00015615,2]
[334955317,1723671067434,-1083.34,0.00015615,2]
[334955318,1723671067444,-500.0,0.00015615,2]
[334955319,1723671067454,-500.0,0.00015615,2]
[334955320,1723671067464,-500.0,0.00015615,2]
[334955321,1723671067474,-500.0,0.00015615,2]
[334955322,1723671067484,-500.0,0.00015615,2]
[334955323,1723671067494,-500.0,0.00015615,2]
[334955324,1723671067504,-867.92,0.00015615,2]
[334955325,1723671067514,-500.0,0.00015615,2]
[334955326,1723671067524,-598.09,0.00015615,2]
[334955327,1723671067533,-500.0,0.00015615,2]
[334955328,1723671067542,-500.0,0.00015615,2]
[334955329,1723671067551,-500.0,0.00015615,2]
[334955330,1723671067560,-500.0,0.00015615,2]
[334955331,1723671067570,-500.0,0.00015615,2]
[334955332,1723671067580,-528.64,0.00015615,2]
[334955333,1723671067590,-500.0,0.00015615,2]
[334955334,1723671067599,-215.64,0.00015615,2]
[334955335,1723671067609,-500.0,0.00015615,2]
[334955336,1723671067619,-500.0,0.00015615,2]
[334955337,1723671067629,-500.0,0.00015615,2]
[334955338,1723671067639,-500.0,0.00015615,2]
[334955339,1723671067648,-500.0,0.00015615,2]
[334955340,1723671067658,-837.07,0.00015615,2]
[334955341,1723671067668,-526.04,0.00015615,2]
[334955342,1723671067678,-500.0,0.00015615,2]
[334955343,1723671067687,-500.0,0.00015615,2]
[334955344,1723671067697,-500.0,0.00015615,2]
[334955345,1723671067707,-500.0,0.00015615,2]
[334955346,1723671067716,-500.0,0.00015615,2]
[334955347,1723671067725,-500.0,0.00015615,2]
[334955348,1723671067734,-500.0,0.00015615,2]
[334955349,1723671067744,-500.0,0.00015615,2]
[334955350,1723671067753,-500.0,0.00015615,2]
[334955351,1723671067762,-151.0,0.00015616,2]
[334955352,1723671067772,-151.0,0.00015616,2]
[334955353,1723671067781,-151.0,0.00015616,2]
[334955354,1723671067790,-151.0,0.00015616,2]
[334955355,1723671067800,-151.0,0.00015616,2]
[334955356,1723671067810,-214.097175,0.00015616,2]
[334955357,1723671067819,-151.0,0.00015616,2]
[334955358,1723671067829,-214.097175,0.00015616,2]
[334955359,1723671067841,-151.0,0.00015616,2]
[334955360,1723671067850,-151.0,0.00015616,2]
[334955361,1723671067859,-209.026705,0.00015616,2]
[334955362,1723671067869,-209.026705,0.00015616,2]
[334955363,1723671067878,-151.0,0.00015616,2]
[334955364,1723671067887,-151.0,0.00015616,2]
[334955365,1723671067896,-163.712186,0.00015616,2]
[334955366,1723671067907,-163.712186,0.00015616,2]
[334955367,1723671067916,-151.0,0.00015616,2]
[334955368,1723671067926,-1072.180846,0.00015616,2]
[334955369,1723671067936,-1072.180846,0.00015616,2]
[334955370,1723671067945,-301.796473,0.00015616,2]
[334955371,1723671067955,-499.626765,0.00015616,2]
[334955372,1723671067964,-301.796473,0.00015616,2]
[334955373,1723671067974,-499.626765,0.00015616,2]
[334955374,1723671067984,-500.0,0.00015616,2]
[334955375,1723671067993,-500.0,0.00015616,2]
[334955376,1723671068003,-500.0,0.00015616,2]
[334955377,1723671068012,-182.328166,0.00015616,2]
[334955378,1723671068021,-182.328166,0.00015616,2]
[334955379,1723671068031,-319.181767,0.00015616,2]
[334955380,1723671068040,-319.181767,0.00015616,2]
[334955381,1723671068050,-199.933526,0.00015616,2]
[334955382,1723671068061,-199.933526,0.00015616,2]
[334955383,1723671068071,-500.0,0.00015616,2]
[334955384,1723671068081,-828.6,0.00015616,2]
[334955385,1723671068090,-207.775921,0.00015616,2]
[334955386,1723671068099,-207.775921,0.00015616,2]
[334955387,1723671068109,-500.0,0.00015616,2]
[334955388,1723671068119,-151.0,0.00015616,2]
[334955389,1723671068130,-949.98397,0.00015616,2]
[334955390,1723671068140,-949.98397,0.00015616,2]
[334955391,1723671068150,-500.0,0.00015616,2]
[334955392,1723671068160,-1704.69613,0.00015616,2]
[334955393,1723671068169,-1704.69613,0.00015616,2]
[334955394,1723671068179,-578.01,0.00015616,2]
[334955395,1723671068189,-275.793089,0.00015616,2]
[334955396,1723671068198,-1091.246547,0.00015616,2]
[334955397,1723671068208,-275.793089,0.00015616,2]
[334955398,1723671068217,-1091.246547,0.00015616,2]
[334955399,1723671068227,-427.976466,0.00015616,2]
[334955400,1723671068236,-156.934275,0.00015616,2]
[334955401,1723671068246,-427.976466,0.00015616,2]
[334955402,1723671068255,-156.934275,0.00015616,2]
[334955403,1723671068264,-151.0,0.00015616,2]
[334955404,1723671068273,-500.0,0.00015616,2]
[334955405,1723671068283,-500.0,0.00015616,2]
[334955406,1723671068293,-328.071574,0.00015616,2]
[334955407,1723671068303,-328.071572,0.00015616,2]
[334955408,1723671068312,-2189.59777,0.00015616,2]
[334955409,1723671068322,-2189.59777,0.00015616,2]
[334955410,1723671068332,-500.0,0.00015616,2]
[334955411,1723671068341,-300.879041,0.00015616,2]
[334955412,1723671068352,-300.879041,0.00015616,2]
[334955413,1723671068362,-500.0,0.00015616,2]
[334955414,1723671068372,-500.0,0.00015616,2]
[334955415,1723671068381,-500.0,0.00015616,2]
[334955416,1723671068391,-534.71,0.00015616,2]
[334955417,1723671068402,-328.97,0.00015616,2]
[334955418,1723671068411,-543.0,0.00015616,2]
[334955419,1723671068421,-643.04,0.00015616,2]
[334955420,1723671068430,-500.0,0.00015616,2]
[334955421,1723671068439,-516.82,0.00015616,2]
[334955422,1723671068451,-500.0,0.00015616,2]
[334955423,1723671068461,-500.0,0.00015616,2]
[334955424,1723671068470,-1439.5,0.00015616,2]
[334955425,1723671068480,-500.0,0.00015616,2]
[334955426,1723671068490,-500.0,0.00015616,2]
[334955427,1723671068499,-500.0,0.00015616,2]
[334955428,1723671068508,-500.0,0.00015616,2]
[334955429,1723671068518,-500.0,0.00015616,2]
[334955430,1723671068528,-500.0,0.00015616,2]
[334955431,1723671068537,-1349.32,0.00015616,2]
[334955432,1723671068547,-500.0,0.00015616,2]
[334955433,1723671068557,-500.0,0.00015616,2]
[334955434,1723671068566,-879.23,0.00015616,2]
[334955435,1723671068576,-500.0,0.00015616,2]
[334955436,1723671068585,-245.67384292,0.00015616,2]
[334955437,1723671068595,-500.0,0.00015616,2]
[334955438,1723671068604,-500.0,0.00015616,2]
[334955439,1723671068614,-500.0,0.00015616,2]
[334955440,1723671068623,-500.0,0.00015616,2]
[334955441,1723671068633,-500.0,0.00015616,2]
[334955442,1723671068643,-1445.27,0.00015616,2]
[334955443,1723671068653,-500.0,0.00015616,2]
[334955444,1723671068663,-463.14,0.00015616,2]
[334955445,1723671068672,-500.0,0.00015616,2]
[334955446,1723671068682,-500.0,0.00015616,2]
[334955447,1723671068692,-500.0,0.00015616,2]
[334955448,1723671068702,-500.0,0.00015743,2]
[334955449,1723671068712,-1747.42,0.00015753,2]
[334955450,1723671068722,-169.40193675,0.000158,2]
[334955451,1723671068731,-167.0,0.00015831,2]
[334955452,1723671068741,-167.0,0.00015831,2]
[334955453,1723671068750,-167.0,0.00015831,2]
[334955454,1723671068760,-350.0,0.00015868,2]
[334955455,1723671068769,-500.0,0.00015888,2]
[334955456,1723671068779,-1074.68,0.00015888,2]
[334955457,1723671068788,-500.0,0.00015888,2]
[334955458,1723671068797,-1128.61,0.00015888,2]
[334955459,1723671068807,-500.0,0.00015888,2]
[334955460,1723671068816,-500.0,0.00015888,2]
[334955461,1723671068825,-500.0,0.00015888,2]
[334955462,1723671068838,-500.0,0.00015888,2]
[334955463,1723671068847,-507.16,0.00015888,2]
[334955464,1723671068857,-500.0,0.00015888,2]
[334955465,1723671068866,-500.0,0.00015888,2]
[334955466,1723671068877,-500.0,0.00015888,2]
[334955467,1723671068887,-500.0,0.00015889,2]
[334955468,1723671068896,-638.55,0.00015889,2]
[334955469,1723671068906,-500.0,0.00015889,2]
[334955470,1723671068916,-500.0,0.00015889,2]
[334955471,1723671068926,-500.0,0.00015889,2]
[334955472,1723671068936,-500.0,0.00015889,2]
[334955473,1723671068945,-500.0,0.00015889,2]
[334955474,1723671068954,-500.0,0.00015889,2]
[334955475,1723671068964,-500.0,0.00015889,2]
[334955476,1723671068973,-278.66413727,0.00015889,2]
[334955477,1723671069081,-402.40452987,0.00015889,2]
[334955478,1723671069090,-500.0,0.00015889,2]
[334955479,1723671069100,-500.0,0.00015889,2]
[334955480,1723671069110,-320.79615318,0.00015889,2]
[334955481,1723671069120,-500.0,0.00015889,2]
[334955482,1723671069130,-500.0,0.00015889,2]
[334955483,1723671069139,-500.0,0.00015889,2]
[334955484,1723671069148,-500.0,0.00015889,2]
[334955485,1723671069158,-500.0,0.00015889,2]
[334955486,1723671069167,-500.0,0.00015889,2]
[334955487,1723671069176,-500.0,0.00015889,2]
[334955488,1723671069186,-500.0,0.00015889,2]
[334955489,1723671069195,-500.0,0.00015889,2]
[334955490,1723671069205,-696.69,0.00015889,2]
[334955491,1723671069215,-500.0,0.00015889,2]
[334955492,1723671069224,-500.0,0.00015889,2]
[334955493,1723671069234,-979.79,0.00015889,2]
[334955494,1723671069244,-500.0,0.00015889,2]
[334955495,1723671069254,-500.0,0.00015889,2]
[334955496,1723671069263,-500.0,0.00015889,2]
[334955497,1723671069273,-312.1132542,0.00015889,2]
[334955498,1723671069282,-500.0,0.00015889,2]
[334955499,1723671069292,-550.5232777,0.00015889,2]
[334955500,1723671069301,-500.0,0.00015889,2]
[334955501,1723671069311,-500.0,0.00015889,2]
[334955502,1723671069320,-500.0,0.00015889,2]
[334955503,1723671069330,-500.0,0.00015889,2]
[334955504,1723671069339,-244.57109461,0.00015889,2]
[334955505,1723671069349,-639.81,0.00015889,2]
[334955506,1723671069359,-500.0,0.00015889,2]
[334955507,1723671069368,-508.64729071,0.00015889,2]
[334955508,1723671069378,-500.0,0.00015889,2]
[334955509,1723671069388,-500.0,0.00015889,2]
[334955510,1723671069398,-500.0,0.00015889,2]
[334955511,1723671069407,-500.0,0.00015889,2]
[334955512,1723671069417,-500.0,0.00015889,2]
[334955513,1723671069427,-500.0,0.00015889,2]
[334955514,1723671069437,-500.0,0.00015889,2]
[334955515,1723671069447,-673.87,0.00015889,2]
[334955516,1723671069458,-500.0,0.00015889,2]
[334955517,1723671069471,-1191.97,0.00015889,2]
[334955518,1723671069487,-500.0,0.00015889,2]
[334955519,1723671069497,-500.0,0.00015889,2]
[334955520,1723671069506,-500.0,0.00015889,2]
[334955521,1723671069518,-500.0,0.00015889,2]
[334955522,1723671069529,-500.0,0.00015889,2]
[334955523,1723671069539,-716.22,0.00015889,2]
[334955524,1723671069548,-500.0,0.00015889,2]
[334955525,1723671069558,-500.0,0.00015889,2]
[334955526,1723671069568,-1083.34,0.00015889,2]
[334955527,1723671069578,-500.0,0.00015889,2]
[334955528,1723671069587,-500.0,0.00015889,2]
[334955529,1723671069597,-500.0,0.00015889,2]
[334955530,1723671069607,-500.0,0.00015889,2]
[334955531,1723671069616,-500.0,0.00015889,2]
[334955532,1723671069626,-595.76,0.00015889,2]
[334955533,1723671069636,-867.92,0.00015889,2]
[334955534,1723671069646,-500.0,0.00015889,2]
[334955535,1723671069655,-598.09,0.00015889,2]
[334955536,1723671069665,-285.29,0.00015889,2]
[334955537,1723671069675,-500.0,0.00015889,2]
[334955538,1723671069685,-500.0,0.00015889,2]
[334955539,1723671069694,-500.0,0.00015889,2]
[334955540,1723671069704,-500.0,0.00015889,2]
[334955541,1723671069713,-500.0,0.00015889,2]
[334955542,1723671069723,-500.0,0.00015889,2]
[334955543,1723671069732,-500.0,0.00015889,2]
[334955544,1723671069741,-500.0,0.00015889,2]
[334955545,1723671069751,-500.0,0.00015889,2]
[334955546,1723671069761,-500.0,0.00015889,2]
[334955547,1723671069770,-837.07,0.00015889,2]
[334955548,1723671069780,-526.04,0.00015889,2]
[334955549,1723671069790,-500.0,0.00015889,2]
[334955550,1723671069800,-500.0,0.00015889,2]
[334955551,1723671069809,-500.0,0.00015889,2]
[334955552,1723671069819,-500.0,0.00015889,2]
[334955553,1723671069829,-500.0,0.00015889,2]
[334955554,1723671069841,-500.0,0.00015889,2]
[334955555,1723671069850,-500.0,0.00015889,2]
[334955556,1723671069860,-500.0,0.00015889,2]
[334955557,1723671069871,-500.0,0.00015889,2]
[334955558,1723671069881,-411.83,0.0001589,2]
[334955559,1723671069890,-500.0,0.0001589,2]
[334955560,1723671069899,-197.76509969,0.0001589,2]
[334955561,1723671069911,-1953.876887,0.0001589,2]
[334955562,1723671069921,-1953.876887,0.0001589,2]
[334955563,1723671069930,-151.0,0.0001589,2]
[334955564,1723671069939,-319.181767,0.0001589,2]
[334955565,1723671069950,-319.181766,0.0001589,2]
[334955566,1723671069960,-199.933526,0.0001589,2]
[334955567,1723671069970,-199.933535,0.0001589,2]
[334955568,1723671069980,-500.0,0.0001589,2]
[334955569,1723671069989,-828.6,0.0001589,2]
[334955570,1723671069999,-207.775921,0.0001589,2]
[334955571,1723671070008,-207.775914,0.0001589,2]
[334955572,1723671070018,-500.0,0.0001589,2]
[334955573,1723671070028,-151.0,0.0001589,2]
[334955574,1723671070037,-949.98397,0.0001589,2]
[334955575,1723671070047,-949.983961,0.0001589,2]
[334955576,1723671070058,-500.0,0.0001589,2]
[334955577,1723671070068,-1704.69613,0.0001589,2]
[334955578,1723671070077,-1704.696131,0.0001589,2]
[334955579,1723671070087,-578.01,0.0001589,2]
[334955580,1723671070098,-275.793089,0.0001589,2]
[334955581,1723671070107,-1091.246547,0.0001589,2]
[334955582,1723671070117,-275.793081,0.0001589,2]
[334955583,1723671070126,-1091.246539,0.0001589,2]
[334955584,1723671070136,-427.976466,0.0001589,2]
[334955585,1723671070145,-156.934275,0.0001589,2]
[334955586,1723671070154,-427.97646,0.0001589,2]
[334955587,1723671070164,-156.934267,0.0001589,2]
[334955588,1723671070173,-500.0,0.0001589,2]
[334955589,1723671070183,-500.0,0.0001589,2]
[334955590,1723671070193,-2189.59777,0.0001589,2]
[334955591,1723671070203,-2189.597767,0.0001589,2]
[334955592,1723671070212,-500.0,0.0001589,2]
[334955593,1723671070222,-300.879041,0.0001589,2]
[334955594,1723671070231,-300.87905,0.0001589,2]
[334955595,1723671070241,-273.18,0.0001589,2]
[334955596,1723671070250,-196.94,0.0001589,2]
[334955597,1723671070259,-500.0,0.0001589,2]
[334955598,1723671070268,-543.0,0.0001589,2]
[334955599,1723671070278,-500.0,0.0001589,2]
[334955600,1723671070288,-516.82,0.0001589,2]
[334955601,1723671070297,-500.0,0.0001589,2]
[334955602,1723671070307,-500.0,0.0001589,2]
[334955603,1723671070316,-1439.5,0.0001589,2]
[334955604,1723671070326,-622.74,0.0001589,2]
[334955605,1723671070336,-500.0,0.0001589,2]
[334955606,1723671070345,-421.89861804,0.0001589,2]
[334955607,1723671070355,-500.0,0.0001589,2]
[334955608,1723671070364,-500.0,0.0001589,2]
[334955609,1723671070374,-500.0,0.0001589,2]
[334955610,1723671070384,-1349.32,0.0001589,2]
[334955611,1723671070394,-500.0,0.0001589,2]
[334955612,1723671070403,-369.2,0.0001589,2]
[334955613,1723671070413,-879.23,0.0001589,2]
[334955614,1723671070422,-512.02,0.0001589,2]
[334955615,1723671070432,-500.0,0.0001589,2]
[334955616,1723671070442,-500.0,0.0001589,2]
[334955617,1723671070451,-500.0,0.0001589,2]
[334955618,1723671070460,-500.0,0.0001589,2]
[334955619,1723671070469,-500.0,0.0001589,2]
[334955620,1723671070478,-1445.27,0.0001589,2]
[334955621,1723671070488,-500.0,0.0001589,2]
[334955622,1723671070498,-500.0,0.0001589,2]
[334955623,1723671070508,-500.0,0.0001589,2]
[334955624,1723671070518,-500.0,0.0001589,2]
[334955625,1723671070527,-900.0,0.000159,5]
[334955626,1723671070537,-174.35,0.00015903,2]
[334955627,1723671070546,-553.46152388,0.00016,50]
[334955628,1723671070556,-700.0,0.00016,2]
[334955629,1723671070565,-2000.0,0.00016,2]
[334955630,1723671070574,-2000.0,0.0001601,2]
[334955631,1723671070584,-500.0,0.00016017,2]
[334955632,1723671070593,-2000.0,0.0001602,2]
[334955633,1723671070602,-2781.715258,0.0001603,2]
[334955634,1723671070613,-1152.0,0.00016035,2]
[334955635,1723671070622,-764.0,0.00016053,2]
[334955636,1723671070632,-719.552,0.00016053,2]
[334955637,1723671070641,-5134.0,0.00016053,2]
[334955638,1723671070650,-580.518,0.00016053,2]
[334955639,1723671070660,-807.526,0.00016053,2]
[334955640,1723671070670,-209.175,0.00016053,2]
[334955641,1723671070679,-200.0,0.0001607,2]
[334955642,1723671070688,-310.16,0.000161,2]
[334955643,1723671070698,-9999.99,0.00016116,2]
[334955644,1723671070708,-400.0,0.00016142,2]
[334955645,1723671070717,-433.63728667,0.00016162,2]
[334955646,1723671070727,-2033.88,0.00016162,2]
[334955647,1723671070737,-1074.68,0.00016162,2]
[334955648,1723671070747,-500.0,0.00016162,2]
[334955649,1723671070756,-500.0,0.00016162,2]
[334955650,1723671070766,-1128.61,0.00016162,2]
[334955651,1723671070775,-500.0,0.00016162,2]
[334955652,1723671070785,-500.0,0.00016162,2]
[334955653,1723671070795,-500.0,0.00016162,2]
[334955654,1723671070804,-500.0,0.00016162,2]
[334955655,1723671070813,-507.16,0.00016162,2]
[334955656,1723671070822,-500.0,0.00016162,2]